bitfinex/quotes_SOLUSD_20251119
["timestamp","ask_amount","ask_price","bid_price","bid_amount"]
[1763563221719,10.30949275,137.11,137.06,0.71]
[1763563222018,18.12096,137.14,137.06,0.71]
[1763563222019,1.8,137.1,137.06,0.71]
[1763563222205,1.8,137.1,137.05,28.43045275]
[1763563222402,1.8,137.1,137.07,10.30949275]
[1763563222600,12.10949275,137.1,137.05,29.14045275]
[1763563222801,1.8,137.1,137.06,10.30949275]
[1763563223105,1.8,137.1,137.06,11.01949275]
[1763563223712,1.8,137.16,137.09,10.30949275]
[1763563223918,1.8,137.16,137.07,0.71]
[1763563223919,1.8,137.16,137.12,10.30949275]
[1763563224309,1.8,137.16,137.1,0.66]
[1763563224504,10.30949275,137.14,137.07,0.66]
[1763563224813,0.67,137.15,137.08,10.30949275]
[1763563225025,10.97949275,137.15,137.1,10.30949275]
[1763563225198,1.8,137.16,137.09,0.66]
[1763563225390,10.30949275,137.15,137.1,10.30949275]
[1763563225617,12.10949275,137.16,137.11,10.30949275]
[1763563225804,1.8,137.16,137.13,10.30949275]
[1763563226121,2.47,137.19,137.13,18.12096]
[1763563226325,1.8,137.18,137.15,10.30949275]
[1763563226628,1.8,137.19,137.15,10.30949275]
[1763563226796,1.8,137.19,137.16,10.30949275]
[1763563226996,1.8,137.19,137.15,10.30949275]
[1763563227228,1.8,137.19,137.16,10.30949275]
[1763563227417,1.8,137.22,137.18,10.30949275]
[1763563227610,12.10949275,137.22,137.17,10.96949275]
[1763563227917,12.10949275,137.22,137.11,1.8]
[1763563227918,10.30949275,137.18,137.11,1.8]
[1763563228118,12.10949275,137.18,137.13,10.30949275]
[1763563228716,10.30949275,137.17,137.12,29.09045275]
[1763563228911,10.97949275,137.16,137.12,18.12096]
[1763563229214,10.97949275,137.16,137.09,10.96949275]
[1763563229215,10.30949275,137.14,137.09,10.96949275]
[1763563229413,1.8,137.13,137.09,29.09045275]
[1763563229630,1.8,137.13,137.09,0.66]
[1763563229926,1.8,137.13,137.09,10.96949275]
[1763563230108,1.8,137.16,137.11,10.30949275]
[1763563230324,1.8,137.16,137.11,10.96949275]
[1763563230520,10.30949275,137.15,137.11,10.96949275]
[1763563230836,7.96123578,137.16,137.11,6.82123578]
[1763563231146,1.8,137.16,137.11,0.66]
[1763563231634,6.16123578,137.13,137.08,18.12096]
[1763563231835,0.67,137.15,137.09,6.16123578]
[1763563232127,6.16123578,137.14,137.09,6.16123578]
[1763563232511,6.16123578,137.12,137.07,6.82123578]
[1763563232712,1.78,137.12,137.08,6.82123578]
[1763563232912,6.16123578,137.09,137.03,0.66]
[1763563233130,6.16123578,137.1,137.05,6.16123578]
[1763563233452,6.16123578,137.11,137.06,6.82123578]
[1763563233942,6.16123578,137.11,137.03,43.66273859]
[1763563233943,6.16123578,137.1,137.05,6.16123578]
[1763563234118,1.78,137.12,137.08,6.16123578]
[1763563234324,1.78,137.12,137.08,6.82123578]
[1763563234648,1.78,137.12,137.05,18.12096]
[1763563234649,6.83123578,137.11,137.05,18.12096]
[1763563234821,6.16123578,137.1,137.05,0.66]
[1763563235028,1.78,137.12,137.06,6.16123578]
[1763563235224,6.16123578,137.09,137.05,18.12096]
[1763563235411,6.16123578,137.06,137.01,0.66]
[1763563235611,6.16123578,137.04,136.99,0.66]
[1763563236034,6.16123578,137.04,136.99,6.82123578]
[1763563236212,1.78,137.07,137.02,6.16123578]
[1763563236411,1.78,137.07,137.03,6.82123578]
[1763563236642,1.78,137.07,137.03,18.78096]
[1763563236848,7.94123578,137.07,137.03,24.94219578]
[1763563237050,7.94123578,137.07,137.03,18.12096]
[1763563237337,1.78,137.07,137.03,24.94219578]
[1763563237516,7.94123578,137.07,137.03,0.66]
[1763563237726,7.94123578,137.07,137.02,18.12096]
[1763563237727,6.16123578,137.05,137.02,18.12096]
[1763563238123,1.78,137.07,137.04,6.16123578]
[1763563238619,1.78,137.07,137.03,6.16123578]
[1763563238620,7.94123578,137.07,137.03,6.16123578]
[1763563238815,6.16123578,137.04,136.97,0.66]
[1763563239051,6.16123578,137.02,136.97,6.82123578]
[1763563239249,7.94123578,137.02,136.98,0.66]
[1763563239461,1.78,137.02,136.98,0.66]
[1763563239618,1.78,137.02,136.98,6.82123578]
[1763563240021,7.94123578,137.02,136.97,24.28219578]
[1763563240335,7.94123578,137.02,136.94,9.98882769]
[1763563240336,2.45,137.02,136.96,6.16123578]
[1763563240527,2.45,137.02,136.97,24.94219578]
[1763563240528,1.78,137.02,136.97,24.94219578]
[1763563240732,7.94123578,137.02,136.97,24.94219578]
[1763563240925,1.78,137.02,136.98,6.82123578]
[1763563241125,7.94123578,137.02,136.98,0.66]
[1763563241523,7.94123578,137.02,136.97,24.28219578]
[1763563241734,7.94123578,137.02,136.97,24.94219578]
[1763563242034,6.16123578,137.01,136.97,18.78096]
[1763563242342,6.16123578,137.0,136.95,24.28219578]
[1763563242544,6.16123578,137.0,136.95,6.16123578]
[1763563242722,6.16123578,137.01,136.96,6.82123578]
[1763563242923,6.16123578,136.99,136.94,6.36123578]
[1763563243240,6.16123578,137.0,136.95,6.82123578]
[1763563243440,1.78,137.02,136.96,6.16123578]
[1763563243628,1.78,137.02,136.98,6.16123578]
[1763563244027,7.94123578,137.02,136.97,24.94219578]
[1763563244248,1.78,137.02,136.98,0.66]
[1763563244451,6.16123578,137.01,136.97,18.12096]
[1763563244637,1.78,137.02,136.95,6.16123578]
[1763563244951,1.78,137.02,136.99,6.16123578]
[1763563245147,1.78,137.02,136.98,6.16123578]
[1763563245330,1.78,137.02,137.0,6.16123578]
[1763563245650,1.78,137.02,136.98,6.16123578]
[1763563245840,1.78,137.02,136.99,0.66]
[1763563246147,1.78,137.02,136.99,6.82123578]
[1763563246648,1.78,137.02,136.99,0.66]
[1763563247235,1.78,137.02,136.99,6.82123578]
[1763563247645,1.78,137.02,136.95,9.78882769]
[1763563247646,6.16123578,137.0,136.95,0.66]
[1763563248139,6.16123578,137.0,136.95,6.82123578]
[1763563248352,6.16123578,137.0,136.95,24.94219578]
[1763563248526,6.16123578,136.99,136.95,18.78096]
[1763563248728,0.67,137.0,136.94,0.2]
[1763563248946,6.16123578,136.98,136.94,0.2]
[1763563249246,1.78,136.97,136.94,0.2]
[1763563249447,7.94123578,136.97,136.94,0.2]
[1763563249629,6.16123578,136.96,136.94,0.2]
[1763563249825,6.16123578,136.96,136.94,18.32096]
[1763563250029,6.16123578,136.95,136.94,0.2]
[1763563250454,6.86123578,136.95,136.94,0.2]
[1763563250654,2.48,136.97,136.94,0.2]
[1763563250826,6.16123578,136.95,136.94,0.2]
[1763563251160,1.78,136.96,136.94,0.2]
[1763563251329,1.78,136.96,136.94,14.34355062]
[1763563251528,6.16123578,137.0,136.95,6.16123578]
[1763563251752,1.78,137.02,136.98,6.16123578]
[1763563252052,1.78,137.02,136.97,18.80096]
[1763563252222,1.78,137.02,136.98,6.84123578]
[1763563252428,0.7,137.1,137.01,6.16123578]
[1763563252625,6.16123578,137.1,137.0,15.95006347]
[1763563252847,6.16123578,137.07,137.03,18.12096]
[1763563253025,6.16123578,137.06,137.02,18.12096]
[1763563253347,0.7,137.09,137.02,24.96219578]
[1763563253570,6.16123578,137.07,137.03,6.16123578]
[1763563253861,6.16123578,137.05,136.99,18.80096]
[1763563254026,7.94123578,137.05,137.0,6.16123578]
[1763563254221,1.78,137.05,136.99,24.96219578]
[1763563254435,6.16123578,137.04,136.99,24.96219578]
[1763563254718,6.16123578,137.04,136.97,6.16123578]
[1763563254719,6.16123578,137.02,136.97,6.16123578]
[1763563255151,0.7,137.04,136.98,0.68]
[1763563255347,6.16123578,137.02,136.98,0.68]
[1763563255724,0.7,137.04,136.98,6.84123578]
[1763563256022,6.16123578,137.03,136.98,6.84123578]
[1763563257225,7.94123578,137.05,137.0,6.16123578]
[1763563257653,6.16123578,137.02,136.97,18.80096]
[1763563257855,0.7,137.04,136.97,18.80096]
[1763563258026,6.16123578,137.02,136.97,24.96219578]
[1763563258452,6.16123578,137.02,136.98,0.68]
[1763563258629,6.16123578,137.03,136.98,6.84123578]
[1763563258834,1.78,137.05,137.01,6.16123578]
[1763563259036,1.78,137.05,136.98,0.68]
[1763563259037,6.16123578,137.04,136.98,18.80096]
[1763563259451,6.16123578,137.04,136.99,6.84123578]
[1763563259654,6.16123578,137.03,136.98,24.28219578]
[1763563260031,6.16123578,137.03,136.98,18.80096]
[1763563260032,6.16123578,137.02,136.98,18.80096]
[1763563260255,6.16123578,137.01,136.95,0.68]
[1763563260458,6.16123578,136.98,136.94,0.2]
[1763563260663,18.12096,136.98,136.94,0.2]
[1763563260961,6.16123578,136.97,136.94,0.2]
[1763563261274,6.16123578,136.97,136.94,0.88]
[1763563261275,1.78,136.97,136.94,0.88]
[1763563261443,1.78,136.97,136.95,6.16123578]
[1763563261630,6.16123578,136.96,136.94,0.2]
[1763563261829,6.16123578,136.95,136.94,0.2]
[1763563262242,6.86123578,136.95,136.94,0.2]
[1763563262839,0.7,136.95,136.94,0.2]
[1763563263045,6.86123578,136.95,136.94,0.2]
[1763563263348,6.16123578,136.95,136.94,0.2]
[1763563263726,16.65006347,136.95,136.94,0.2]
[1763563264138,10.48882769,136.95,136.94,0.2]
[1763563264337,6.16123578,137.0,136.94,7.04123578]
[1763563264544,6.16123578,137.0,136.94,0.88]
[1763563264545,1.78,137.0,136.94,0.88]
[1763563264755,1.78,137.0,136.95,6.16123578]
[1763563264964,6.16123578,136.99,136.94,0.88]
[1763563265148,1.78,137.0,136.97,6.16123578]
[1763563265345,1.78,137.0,136.95,0.68]
[1763563265537,6.16123578,136.99,136.95,0.68]
[1763563265734,6.16123578,136.96,136.94,0.2]
[1763563265949,7.94123578,136.95,136.94,0.2]
[1763563266464,1.78,136.95,136.94,0.88]
[1763563266635,0.7,137.08,136.97,18.12096]
[1763563266837,6.16123578,137.05,136.97,18.12096]
[1763563267063,6.16123578,137.05,136.98,0.68]
[1763563267358,12.28882769,137.07,136.99,6.16123578]
[1763563267543,12.28882769,137.07,136.94,9.98882769]
[1763563267544,6.16123578,137.0,136.97,18.12096]
[1763563267741,6.16123578,136.99,136.95,0.68]
[1763563268158,1.8,137.0,136.95,6.84123578]
[1763563268159,7.96123578,137.0,136.95,6.84123578]
[1763563268458,1.8,137.0,136.98,6.16123578]
[1763563268667,1.8,137.0,136.96,18.80096]
[1763563268668,1.8,137.0,136.97,24.28219578]
[1763563268842,1.8,137.0,136.97,18.80096]
[1763563269156,1.8,137.0,136.95,24.96219578]
[1763563269359,9.78882769,137.06,136.99,6.16123578]
[1763563269575,1.8,137.06,136.96,0.68]
[1763563269870,6.16123578,137.05,137.0,6.16123578]
[1763563270055,1.8,137.06,137.01,6.84123578]
[1763563270056,7.96123578,137.06,137.01,6.84123578]
[1763563270372,1.8,137.06,137.03,6.16123578]
[1763563270537,1.8,137.06,137.04,6.16123578]
[1763563270738,0.7,137.16,137.08,18.12096]
[1763563270970,0.7,137.19,137.12,6.16123578]
[1763563271130,1.8,137.18,137.13,7.97228592]
[1763563271335,1.8,137.18,137.14,6.16123578]
[1763563271532,1.8,137.18,137.13,24.28219578]
[1763563271779,1.8,137.18,137.16,6.16123578]
[1763563271940,1.8,137.18,137.14,0.68]
[1763563272260,1.8,137.18,137.16,6.16123578]
[1763563272451,0.1,137.22,137.17,6.84123578]
[1763563272662,0.1,137.22,137.19,6.16123578]
[1763563272834,0.1,137.22,137.18,6.16123578]
[1763563273038,6.26123578,137.22,137.17,18.12096]
[1763563273233,6.26123578,137.22,137.17,24.28219578]
[1763563273453,6.26123578,137.22,137.17,18.12096]
[1763563273662,6.26123578,137.22,137.17,18.80096]
[1763563273864,6.16123578,137.18,137.11,1.8]
[1763563274164,0.7,137.21,137.11,0.68]
[1763563274165,1.8,137.17,137.11,0.68]
[1763563274467,7.96123578,137.17,137.12,6.16123578]
[1763563274651,1.8,137.17,137.14,6.16123578]
[1763563274966,6.16123578,137.17,137.13,18.12096]
[1763563275265,6.16123578,137.17,137.12,6.16123578]
[1763563275435,6.16123578,137.2,137.15,6.16123578]
[1763563275858,7.96123578,137.21,137.16,6.84123578]
[1763563276166,6.16123578,137.2,137.16,0.68]
[1763563276464,1.8,137.21,137.16,0.68]
[1763563276465,1.8,137.21,137.16,6.84123578]
[1763563276637,1.8,137.21,137.16,0.68]
[1763563276833,1.8,137.21,137.14,18.12096]
[1763563276834,1.8,137.21,137.19,6.16123578]
[1763563277035,0.1,137.22,137.2,6.16123578]
[1763563277263,0.1,137.22,137.18,6.16123578]
[1763563277464,0.1,137.22,137.19,24.28219578]
[1763563277638,0.1,137.22,137.21,6.16123578]
[1763563277841,0.7,137.34,137.23,18.12096]
[1763563278045,6.16123578,137.31,137.25,18.12096]
[1763563278270,6.16123578,137.27,137.22,24.96219578]
[1763563278768,9.78882769,137.32,137.23,6.84123578]
[1763563278945,0.7,137.31,137.23,0.68]
[1763563279138,6.16123578,137.3,137.26,6.16123578]
[1763563279340,0.1,137.33,137.25,18.12096]
[1763563279341,6.16123578,137.29,137.25,18.12096]
[1763563279557,6.16123578,137.29,137.21,9.78882769]
[1763563279558,6.16123578,137.28,137.23,6.16123578]
[1763563279838,6.16123578,137.27,137.22,24.97219578]
[1763563280037,1.8,137.28,137.21,6.16123578]
[1763563280038,6.16123578,137.26,137.21,6.16123578]
[1763563280238,1.8,137.28,137.18,0.69]
[1763563280239,6.16123578,137.23,137.18,0.69]
[1763563280467,0.69,137.27,137.19,6.16123578]
[1763563280681,9.78882769,137.35,137.26,6.16123578]
[1763563280838,9.78882769,137.35,137.24,18.12096]
[1763563280839,1.8,137.35,137.25,9.78882769]
[1763563281044,1.8,137.35,137.29,6.16123578]
[1763563281278,6.16123578,137.31,137.26,24.97219578]
[1763563281444,6.16123578,137.31,137.26,18.81096]
[1763563281642,0.1,137.33,137.28,6.16123578]
[1763563281858,0.1,137.33,137.3,6.16123578]
[1763563282342,0.1,137.33,137.3,6.85123578]
[1763563282542,0.1,137.33,137.29,6.16123578]
[1763563282746,6.16123578,137.31,137.26,18.12096]
[1763563282943,6.16123578,137.29,137.24,6.16123578]
[1763563283174,6.16123578,137.29,137.24,24.28219578]
[1763563283358,1.8,137.29,137.25,6.85123578]
[1763563284160,6.16123578,137.27,137.21,0.72]
[1763563284363,1.8,137.29,137.22,6.16123578]
[1763563284673,6.16123578,137.28,137.23,6.16123578]
[1763563284848,1.8,137.29,137.24,18.12096]
[1763563285171,6.16123578,137.27,137.22,0.72]
[1763563285350,6.16123578,137.27,137.22,25.00219578]
[1763563285671,1.8,137.29,137.24,6.16123578]
[1763563285852,1.8,137.29,137.27,6.16123578]
[1763563286052,0.1,137.33,137.28,6.16123578]
[1763563286258,0.1,137.33,137.29,6.16123578]
[1763563286451,0.1,137.33,137.29,27.90978769]
[1763563286650,0.1,137.33,137.32,6.16123578]
[1763563287172,0.1,137.33,137.3,18.12096]
[1763563287349,0.1,137.33,137.32,6.88123578]
[1763563287551,0.1,137.33,137.3,24.28219578]
[1763563287766,0.1,137.33,137.31,6.16123578]
[1763563288085,0.1,137.33,137.3,25.00219578]
[1763563288774,0.1,137.33,137.3,18.84096]
[1763563288955,0.1,137.33,137.3,0.72]
[1763563289276,6.26123578,137.33,137.28,6.88123578]
[1763563289476,6.16123578,137.3,137.24,0.72]
[1763563289681,6.16123578,137.31,137.26,6.88123578]
[1763563289864,6.16123578,137.31,137.26,6.16123578]
[1763563290056,1.88,137.33,137.29,6.16123578]
[1763563290255,8.04123578,137.33,137.28,6.16123578]
[1763563290565,8.04123578,137.33,137.27,0.72]
[1763563290566,1.88,137.33,137.29,6.16123578]
[1763563290954,1.88,137.33,137.29,6.88123578]
[1763563291558,8.04123578,137.33,137.27,0.72]
[1763563291758,1.88,137.33,137.28,6.16123578]
[1763563291957,6.16123578,137.31,137.2,13.44969185]
[1763563292264,6.16123578,137.3,137.24,0.72]
[1763563292571,6.16123578,137.29,137.24,18.84096]
[1763563292881,10.27737399,137.26,137.2,0.72]
[1763563293074,27.90978769,137.32,137.23,10.27737399]
[1763563293075,0.7,137.3,137.23,10.27737399]
[1763563293277,10.27737399,137.26,137.21,10.27737399]
[1763563293450,12.05737399,137.27,137.22,0.72]
[1763563293655,12.05737399,137.27,137.22,29.11833399]
[1763563293976,10.27737399,137.25,137.2,10.27737399]
[1763563294177,12.05737399,137.27,137.22,10.27737399]
[1763563294382,1.78,137.27,137.21,0.72]
[1763563294581,12.05737399,137.27,137.22,10.27737399]
[1763563294783,1.78,137.27,137.24,10.27737399]
[1763563294961,1.78,137.27,137.23,10.27737399]
[1763563295155,12.75737399,137.27,137.23,18.12096]
[1763563295374,12.05737399,137.27,137.23,18.12096]
[1763563295783,1.78,137.27,137.24,10.99737399]
[1763563296089,1.78,137.27,137.24,0.72]
[1763563296507,10.27737399,137.25,137.22,18.12096]
[1763563296659,10.27737399,137.25,137.2,28.39833399]
[1763563296865,10.27737399,137.25,137.21,18.12096]
[1763563297079,0.7,137.24,137.21,18.12096]
[1763563297381,10.27737399,137.23,137.18,10.27737399]
[1763563297604,0.7,137.24,137.13,0.72]
[1763563297605,10.27737399,137.2,137.13,0.72]
[1763563297758,10.27737399,137.19,137.14,10.27737399]
[1763563297955,10.27737399,137.2,137.15,0.72]
[1763563298172,10.27737399,137.2,137.15,10.99737399]
[1763563298386,10.27737399,137.19,137.14,18.12096]
[1763563298607,0.7,137.2,137.13,0.72]
[1763563298608,10.27737399,137.17,137.13,0.72]
[1763563298772,12.05737399,137.17,137.13,0.72]
[1763563298962,12.05737399,137.17,137.12,10.27737399]
[1763563299303,1.78,137.17,137.15,10.27737399]
[1763563300086,1.78,137.17,137.15,0.72]
[1763563300391,1.78,137.17,137.14,10.27737399]
[1763563300392,12.05737399,137.17,137.11,0.72]
[1763563300568,12.05737399,137.17,137.09,9.78882769]
[1763563300569,10.27737399,137.14,137.09,0.72]
[1763563300761,10.27737399,137.14,137.09,10.99737399]
[1763563300967,10.27737399,137.13,137.08,10.47737399]
[1763563301167,1.78,137.12,137.09,10.99737399]
[1763563301479,1.78,137.12,137.09,0.72]
[1763563301668,1.78,137.12,137.1,10.27737399]
[1763563301876,1.78,137.15,137.11,10.27737399]
[1763563302080,1.78,137.15,137.12,10.27737399]
[1763563302380,0.7,137.22,137.14,10.27737399]
[1763563302582,0.7,137.22,137.15,10.27737399]
[1763563302583,10.27737399,137.2,137.15,10.27737399]
[1763563302762,10.27737399,137.19,137.14,10.27737399]
[1763563302961,0.7,137.19,137.13,0.72]
[1763563303165,10.27737399,137.18,137.13,10.99737399]
[1763563303603,18.12096,137.2,137.14,10.99737399]
[1763563303893,28.39833399,137.2,137.15,10.27737399]
[1763563304073,10.27737399,137.19,137.14,10.99737399]
[1763563304402,10.27737399,137.18,137.13,18.12096]
[1763563304573,1.78,137.17,137.13,29.11833399]
[1763563304768,10.27737399,137.16,137.11,10.27737399]
[1763563305294,10.27737399,137.16,137.12,0.72]
[1763563305492,1.78,137.17,137.13,10.27737399]
[1763563305673,1.78,137.2,137.16,10.27737399]
[1763563305871,1.78,137.2,137.18,10.27737399]
[1763563306086,10.27737399,137.24,137.18,10.27737399]
[1763563306269,1.78,137.23,137.2,10.27737399]
[1763563306475,1.78,137.23,137.21,10.27737399]
[1763563306693,1.78,137.23,137.21,10.99737399]
[1763563307094,1.78,137.23,137.16,18.12096]
[1763563307400,1.78,137.23,137.19,10.27737399]
[1763563307774,10.27737399,137.22,137.17,10.99737399]
[1763563307982,10.97737399,137.22,137.17,10.27737399]
[1763563308180,1.78,137.23,137.18,10.99737399]
[1763563308390,10.27737399,137.22,137.17,10.27737399]
[1763563308696,10.27737399,137.22,137.16,25.41170089]
[1763563308874,10.27737399,137.22,137.17,10.99737399]
[1763563309075,1.78,137.23,137.18,10.27737399]
[1763563309275,12.05737399,137.23,137.18,10.27737399]
[1763563309476,12.05737399,137.23,137.18,10.99737399]
[1763563309680,12.05737399,137.23,137.18,17.56704873]
[1763563309885,12.05737399,137.23,137.18,10.94737399]
[1763563310089,1.78,137.23,137.19,16.3040471]
[1763563310311,1.78,137.23,137.21,10.27737399]
[1763563310617,12.05737399,137.23,137.16,18.12096]
[1763563310792,12.05737399,137.23,137.18,10.94737399]
[1763563310994,12.05737399,137.23,137.19,5.36337321]
[1763563311194,12.05737399,137.23,137.18,10.94737399]
[1763563311385,12.74737399,137.23,137.18,10.94737399]
[1763563311789,12.05737399,137.23,137.18,10.94737399]
[1763563312340,12.05737399,137.23,137.19,0.67]
[1763563312618,1.78,137.23,137.19,0.67]
[1763563312822,12.05737399,137.23,137.17,10.27737399]
[1763563312999,12.05737399,137.23,137.17,0.67]
[1763563313181,12.74737399,137.23,137.17,10.94737399]
[1763563313513,2.47,137.23,137.17,10.27737399]
[1763563313726,10.27737399,137.22,137.17,10.27737399]
[1763563314018,10.27737399,137.22,137.17,17.56753973]
[1763563314223,10.27737399,137.22,137.17,18.23753973]
[1763563314393,10.27737399,137.21,137.16,28.39833399]
[1763563314591,0.69,137.22,137.17,10.94737399]
[1763563314592,10.27737399,137.22,137.17,10.94737399]
[1763563314794,10.96737399,137.22,137.17,10.94737399]
[1763563314991,1.78,137.23,137.17,10.94737399]
[1763563314992,12.05737399,137.23,137.17,10.27737399]
[1763563315301,10.27737399,137.22,137.17,10.27737399]
[1763563315696,10.96737399,137.22,137.17,10.94737399]
[1763563315913,10.27737399,137.22,137.17,10.94737399]
[1763563316086,1.78,137.23,137.19,10.27737399]
[1763563316727,18.21,137.3,137.22,10.27737399]
[1763563316894,12.05737399,137.27,137.2,18.79096]
[1763563317086,12.05737399,137.27,137.22,10.27737399]
[1763563317483,12.05737399,137.27,137.22,10.94737399]
[1763563317682,12.05737399,137.27,137.19,1.78]
[1763563317683,0.69,137.26,137.19,18.12096]
[1763563317892,19.90096,137.27,137.21,10.27737399]
[1763563318100,10.27737399,137.25,137.18,28.57978769]
[1763563318288,1.78,137.24,137.2,10.27737399]
[1763563318488,1.78,137.24,137.21,10.27737399]
[1763563318887,18.81096,137.28,137.22,0.67]
[1763563319109,1.78,137.25,137.22,10.94737399]
[1763563319314,1.78,137.25,137.22,0.67]
[1763563319816,12.05737399,137.25,137.2,10.27737399]
[1763563319993,10.27737399,137.24,137.19,10.27737399]
[1763563320191,1.78,137.25,137.21,10.27737399]
[1763563320396,29.08833399,137.29,137.23,10.27737399]
[1763563320590,12.05737399,137.28,137.23,0.67]
[1763563320791,12.05737399,137.28,137.23,10.94737399]
[1763563320994,0.79,137.33,137.24,0.67]
[1763563321195,1.78,137.32,137.27,10.27737399]
[1763563321402,1.78,137.32,137.29,10.27737399]
[1763563321606,0.1,137.33,137.31,17.5597735]
[1763563321829,0.79,137.38,137.31,17.5597735]
[1763563321830,0.1,137.38,137.35,18.12096]
[1763563322016,0.1,137.38,137.37,10.27737399]
[1763563322218,0.1,137.38,137.34,10.27737399]
[1763563322399,12.84737399,137.38,137.33,10.27737399]
[1763563322719,1.88,137.38,137.35,10.27737399]
[1763563322924,1.88,137.38,137.35,10.94737399]
[1763563323107,1.88,137.38,137.34,10.27737399]
[1763563323294,1.88,137.38,137.33,18.79096]
[1763563323295,1.88,137.38,137.35,10.27737399]
[1763563323702,12.84737399,137.38,137.33,10.27737399]
[1763563323906,12.84737399,137.38,137.33,27.26833399]
[1763563324105,10.27737399,137.35,137.29,0.67]
[1763563324304,10.27737399,137.35,137.3,28.39833399]
[1763563324511,1.88,137.38,137.31,10.27737399]
[1763563324709,10.27737399,137.37,137.31,10.94737399]
[1763563325004,12.15737399,137.38,137.32,0.67]
[1763563325204,0.1,137.38,137.35,10.27737399]
[1763563325522,0.1,137.38,137.37,10.27737399]
[1763563325905,0.1,137.38,137.37,10.94737399]
[1763563326105,0.1,137.38,137.37,29.06833399]
[1763563326325,0.1,137.38,137.37,36.3479438]
[1763563326634,0.1,137.38,137.37,29.06833399]
[1763563327045,0.1,137.38,137.37,36.3479438]
[1763563327205,0.1,137.38,137.37,46.13677149]
[1763563327538,0.1,137.38,137.37,38.85716168]
[1763563327739,0.1,137.38,137.37,18.79096]
[1763563327932,0.1,137.38,137.37,29.06833399]
[1763563328116,0.1,137.38,137.35,10.27737399]
[1763563328309,0.1,137.38,137.36,10.27737399]
[1763563328646,0.1,137.38,137.37,38.85716168]
[1763563328829,1.78,137.43,137.38,9.78882769]
[1763563329006,12.05737399,137.46,137.4,9.78882769]
[1763563329309,10.27737399,137.45,137.4,0.67]
[1763563329510,10.27737399,137.43,137.4,18.12096]
[1763563329709,0.69,137.45,137.4,18.12096]
[1763563329915,10.96737399,137.45,137.4,18.12096]
[1763563330126,10.27737399,137.44,137.4,18.12096]
[1763563330611,0.69,137.45,137.4,18.12096]
[1763563330934,10.27737399,137.44,137.4,18.12096]
[1763563331226,0.69,137.45,137.4,18.12096]
[1763563331557,0.69,137.45,137.33,1.99999999]
[1763563331558,10.27737399,137.41,137.34,0.67]
[1763563331725,1.78,137.4,137.32,10.94737399]
[1763563331909,10.27737399,137.38,137.34,18.12096]
[1763563332113,10.27737399,137.36,137.29,0.67]
[1763563332307,1.78,137.35,137.23,0.72870363]
[1763563332547,10.27737399,137.29,137.24,10.27737399]
[1763563332830,2.47,137.35,137.23,3.17870363]
[1763563333052,10.27737399,137.33,137.27,10.27737399]
[1763563333251,10.27737399,137.3,137.25,0.67]
[1763563333450,10.27737399,137.29,137.24,10.27737399]
[1763563333623,10.27737399,137.28,137.22,0.67]
[1763563333952,0.69,137.29,137.19,0.67]
[1763563334110,0.69,137.31,137.23,28.39833399]
[1763563334303,10.27737399,137.28,137.23,28.39833399]
[1763563334513,10.27737399,137.28,137.23,18.12096]
[1763563334717,10.27737399,137.29,137.24,10.94737399]
[1763563335048,12.05737399,137.3,137.24,10.94737399]
[1763563335348,10.27737399,137.29,137.24,10.94737399]
[1763563335554,1.78,137.3,137.24,10.94737399]
[1763563335555,9.78882769,137.36,137.28,10.27737399]
[1763563335842,0.69,137.42,137.35,10.27737399]
[1763563336032,1.78,137.43,137.39,10.27737399]
[1763563336211,10.27737399,137.46,137.4,10.27737399]
[1763563336411,10.96737399,137.46,137.4,10.27737399]
[1763563336613,10.27737399,137.45,137.38,18.79096]
[1763563336841,10.27737399,137.45,137.4,10.27737399]
[1763563337020,10.27737399,137.45,137.38,18.79096]
[1763563337225,10.27737399,137.43,137.35,0.67]